bitfinex/quotes_BTCUSD_20230117
["timestamp","ask_amount","ask_price","bid_price","bid_amount"]
[1673986491598,0.28482647,21391.0,21390.0,0.944016]
[1673986491846,0.14487295,21391.0,21390.0,0.68807044]
[1673986494345,0.14487295,21391.0,21390.0,0.76257044]
[1673986495868,0.28482647,21391.0,21390.0,0.68807044]
[1673986496117,0.28482647,21391.0,21390.0,0.22056244]
[1673986496118,0.49465653,21391.0,21390.0,0.22056244]
[1673986496391,0.81515753,21391.0,21390.0,0.009]
[1673986496606,0.67520401,21391.0,21390.0,0.009]
[1673986496936,0.95319591,21391.0,21390.0,200.009]
[1673986497185,0.63269491,21391.0,21390.0,200.009]
[1673986497431,0.35470301,21391.0,21390.0,200.009]
[1673986497699,0.63269491,21391.0,21390.0,200.009]
[1673986498198,0.35470301,21391.0,21390.0,200.009]
[1673986499025,0.63269491,21391.0,21390.0,200.009]
[1673986499270,0.42286485,21391.0,21390.0,200.009]
[1673986499561,0.63290359,21391.0,21390.0,200.009]
[1673986499774,0.35491169,21391.0,21390.0,200.009]
[1673986500033,0.49492314,21391.0,21390.0,200.009]
[1673986500292,0.2848844,21391.0,21390.0,200.009]
[1673986500548,0.35491169,21391.0,21390.0,200.009]
[1673986501829,0.63290359,21391.0,21390.0,200.009]
[1673986502075,0.35491169,21391.0,21390.0,200.009]
[1673986502327,0.42286485,21391.0,21390.0,200.009]
[1673986502590,1.33243982,21391.0,21390.0,200.009]
[1673986502840,0.86495382,21391.0,21390.0,200.009]
[1673986503087,0.42286485,21391.0,21390.0,200.009]
[1673986503603,0.89035085,21391.0,21390.0,200.009]
[1673986504415,1.73819484,21391.0,21390.0,200.009]
[1673986504717,1.52980814,21391.0,21390.0,200.009]
[1673986506753,1.17978355,21391.0,21390.0,200.009]
[1673986507256,1.47978355,21391.0,21390.0,200.009]
[1673986508049,1.17978355,21391.0,21390.0,200.009]
[1673986508294,1.52969704,21391.0,21390.0,200.009]
[1673986509081,1.17978355,21391.0,21390.0,200.009]
[1673986509340,1.52969621,21391.0,21390.0,200.009]
[1673986510121,1.52969621,21391.0,21390.0,0.009]
[1673986510378,1.85019721,21391.0,21390.0,0.009]
[1673986511428,1.38271121,21391.0,21390.0,0.42537038]
[1673986511686,0.68375517,21391.0,21390.0,0.42537038]
[1673986511962,0.50317264,21391.0,21390.0,0.42537038]
[1673986512189,0.82367364,21391.0,21390.0,0.42537038]
[1673986512982,0.96360473,21391.0,21390.0,0.42537038]
[1673986513250,0.64310373,21391.0,21390.0,0.42537038]
[1673986513757,0.28478234,21391.0,21390.0,0.42537038]
[1673986514017,0.28478234,21391.0,21390.0,1.36038638]
[1673986514271,0.14487295,21391.0,21390.0,1.36038638]
[1673986515867,0.14495295,21391.0,21390.0,1.36038638]
[1673986516109,0.14495295,21391.0,21390.0,1.43488638]
[1673986519364,0.28486234,21391.0,21390.0,1.36038638]
[1673986519614,0.81524456,21391.0,21390.0,0.42528111]
[1673986519870,0.49474356,21391.0,21390.0,0.42528111]
[1673986520129,0.67533517,21391.0,21390.0,0.42528111]
[1673986520394,0.35483417,21391.0,21390.0,0.42528111]
[1673986521396,0.63468373,21391.0,21390.0,0.42528111]
[1673986521650,0.63468373,21391.0,21390.0,0.00891073]
[1673986521932,1.38364729,21391.0,21390.0,0.00891073]
[1673986522457,1.85113329,21391.0,21390.0,0.00891073]
[1673986522726,2.22156733,21391.0,21390.0,0.00891073]
[1673986522994,1.50122063,21391.0,21390.0,0.00891073]
[1673986523251,1.50122063,21391.0,21390.0,0.00391073]
[1673986523523,1.80122063,21391.0,21390.0,0.00441073]
[1673986524309,2.11762332,21391.0,21390.0,0.00441073]
[1673986525074,1.50122063,21391.0,21390.0,0.00441073]
[1673986525322,1.80122063,21391.0,21390.0,0.00441073]
[1673986526644,1.50122063,21391.0,21390.0,0.00441073]
[1673986527168,1.49272063,21391.0,21390.0,0.00441073]
[1673986527448,0.74538163,21391.0,21390.0,0.20856073]
[1673986527684,0.67539008,21391.0,21390.0,0.20856073]
[1673986527993,0.95531776,21391.0,21390.0,0.20856073]
[1673986528197,0.67539008,21391.0,21390.0,0.00441073]
[1673986528450,0.81535425,21391.0,21390.0,0.00441073]
[1673986528725,1.14287608,21391.0,21390.0,0.00441073]
[1673986528966,0.67539008,21391.0,21390.0,0.00441073]
[1673986529222,0.95531776,21391.0,21390.0,0.00441073]
[1673986529693,0.74538163,21391.0,21390.0,0.00441073]
[1673986530195,0.74538163,21391.0,21390.0,0.00497355]
[1673986530451,0.95534651,21391.0,21390.0,0.00497355]
[1673986530750,0.74538163,21391.0,21390.0,0.00497355]
[1673986531777,1.18802414,21391.0,21390.0,0.00497355]
[1673986532798,1.65551014,21391.0,21390.0,0.00497355]
[1673986533061,1.8016508,21391.0,21390.0,0.00497355]
[1673986533320,1.85084947,21391.0,21390.0,0.00497355]
[1673986533589,2.27119617,21391.0,21390.0,0.00497355]
[1673986534621,1.83132322,21391.0,21390.0,0.00497355]
[1673986534878,2.22730103,21391.0,21390.0,0.00497355]
[1673986535176,2.13132322,21391.0,21390.0,0.00497355]
[1673986538021,2.13101599,21391.0,21390.0,0.00497355]
[1673986539299,2.13101599,21391.0,21390.0,0.00106282]
[1673986539300,2.12601599,21391.0,21390.0,0.00106282]
[1673986539816,1.70597652,21391.0,21390.0,0.00106282]
[1673986540078,1.78047652,21391.0,21390.0,0.0007782]
[1673986540345,2.65803107,21391.0,21390.0,0.0007782]
[1673986540587,2.87525875,21391.0,21390.0,0.0007782]
[1673986540919,2.48887131,21391.0,21390.0,0.0007782]
[1673986541103,3.43806044,21391.0,21390.0,0.0007782]
[1673986541604,3.43818092,21391.0,21390.0,0.0007782]
[1673986542398,3.58818092,21391.0,21390.0,0.0007782]
[1673986542663,3.115673,21391.0,21390.0,0.0007782]
[1673986542933,3.23881539,21391.0,21390.0,0.00042734]
[1673986543144,3.71116817,21391.0,21390.0,0.00042734]
[1673986543491,3.23881539,21391.0,21390.0,0.00042734]
[1673986543725,3.45859566,21391.0,21390.0,0.00042734]
[1673986544247,3.895948,21391.0,21390.0,0.00042734]
[1673986544512,4.178548,21391.0,21390.0,0.00042734]
[1673986544804,4.46256477,21391.0,21390.0,0.00042734]
[1673986546325,4.092548,21391.0,21390.0,0.00042734]
[1673986546573,4.183548,21391.0,21388.0,9.003808]
[1673986546873,0.1487,21389.0,21388.0,9.003808]
[1673986547103,3.50509988,21389.0,21388.0,9.003808]
[1673986547410,4.05694554,21389.0,21388.0,9.003808]
[1673986547616,3.58497522,21389.0,21388.0,9.003808]
[1673986547884,4.53080755,21389.0,21388.0,9.003808]
[1673986548143,4.96815989,21389.0,21388.0,9.003808]
[1673986548412,5.09029702,21389.0,21388.0,9.003808]
[1673986548677,5.09025223,21389.0,21388.0,9.003808]
[1673986548929,4.87271108,21389.0,21388.0,9.003808]
[1673986549189,5.40106342,21389.0,21388.0,9.003808]
[1673986549440,4.92937805,21389.0,21388.0,9.003808]
[1673986549697,5.40106932,21389.0,21388.0,9.003808]
[1673986550220,5.40106932,21389.0,21388.0,7.89855161]
[1673986550981,4.8366532,21389.0,21388.0,6.60908797]
[1673986551233,5.59134447,21389.0,21388.0,6.60908797]
[1673986551491,5.59134447,21389.0,21388.0,6.13855342]
[1673986551752,5.59134447,21389.0,21388.0,5.66300542]
[1673986552014,5.1196532,21389.0,21388.0,5.66300542]
[1673986552589,5.30894447,21389.0,21388.0,1.88426623]
[1673986552799,5.1208532,21389.0,21388.0,0.34637723]
[1673986553049,0.15,21388.0,21381.0,0.00468975]
[1673986553312,0.3491087,21382.0,21381.0,0.00468975]
[1673986553583,1.27867032,21382.0,21381.0,0.00468975]
[1673986553887,2.38096839,21382.0,21381.0,0.00468975]
[1673986554093,2.85817008,21382.0,21381.0,0.00468975]
[1673986554346,3.39948993,21382.0,21381.0,0.00468975]
[1673986554614,3.83239431,21382.0,21381.0,0.00468975]
[1673986554863,3.69268128,21382.0,21381.0,0.00468975]
[1673986555120,3.83239431,21382.0,21381.0,0.00468975]
[1673986555892,3.71303522,21382.0,21381.0,0.00468975]
[1673986556176,3.62303522,21382.0,21381.0,0.00468975]
[1673986556460,3.57425123,21382.0,21381.0,0.00468975]
[1673986556687,3.48325123,21382.0,21381.0,0.00468975]
[1673986556945,3.57425123,21382.0,21381.0,0.00468975]
[1673986557205,3.48325123,21382.0,21381.0,0.00468975]
[1673986557479,3.57431123,21382.0,21381.0,0.00468975]
[1673986557739,3.78819522,21382.0,21381.0,0.00468975]
[1673986557996,4.13730393,21382.0,21381.0,0.00468975]
[1673986558255,4.24516654,21382.0,21381.0,0.00468975]
[1673986558541,4.33616654,21382.0,21381.0,0.00468975]
[1673986558772,4.36734048,21382.0,21381.0,0.00468975]
[1673986559047,4.30834048,21382.0,21381.0,0.00468975]
[1673986559315,2.97691971,21382.0,21381.0,0.00468975]
[1673986559580,2.708499,21382.0,21381.0,0.00468975]
[1673986560558,2.42917795,21382.0,21381.0,0.00468975]
[1673986560827,2.82017795,21382.0,21381.0,0.00468975]
[1673986561082,3.87902906,21382.0,21381.0,0.00468975]
[1673986561334,3.4180058,21382.0,21381.0,0.00468975]
[1673986561634,3.87902906,21382.0,21381.0,0.00468975]
[1673986561853,3.78802906,21382.0,21381.0,0.00468975]
[1673986562114,2.95963639,21382.0,21381.0,0.00468975]
[1673986562387,2.82017795,21382.0,21381.0,0.00468975]
[1673986562625,2.95963639,21382.0,21381.0,0.00468975]
[1673986563399,2.82017795,21382.0,21381.0,0.00468975]
[1673986563660,3.29422012,21382.0,21381.0,0.00468975]
[1673986563919,2.81161795,21382.0,21381.0,0.00468975]
[1673986564695,2.59175169,21382.0,21381.0,0.00468975]
[1673986564976,2.81161663,21382.0,21381.0,0.00468975]
[1673986565752,3.41209833,21382.0,21381.0,0.00468975]
[1673986566014,4.15272046,21382.0,21381.0,0.00468975]
[1673986566299,3.94356367,21382.0,21381.0,0.00468975]
[1673986567041,2.8689798,21382.0,21381.0,0.00468975]
[1673986567048,2.04291494,21382.0,21381.0,0.1954157]
[1673986567297,1.81455,21382.0,21381.0,0.00468975]
[1673986568653,2.12305,21382.0,21381.0,0.00468975]
[1673986569173,1.82305,21382.0,21381.0,0.00468975]
[1673986570223,2.005361,21382.0,21381.0,0.00468975]
[1673986570455,2.305361,21382.0,21381.0,0.00468975]
[1673986570959,2.12305,21382.0,21381.0,0.00468975]
[1673986571487,2.26250844,21382.0,21381.0,0.00468975]
[1673986571730,2.94886692,21382.0,21381.0,0.00468975]
[1673986572024,2.80940848,21382.0,21381.0,0.00468975]
[1673986573001,3.02927176,21382.0,21381.0,0.00468975]
[1673986573304,3.80303947,21382.0,21381.0,0.00468975]
[1673986573522,4.63786465,21382.0,21381.0,0.00468975]
[1673986573792,4.40744035,21382.0,21381.0,0.00468975]
[1673986574624,4.17359035,21382.0,21381.0,0.00468975]
[1673986574893,3.82448164,21382.0,21381.0,0.00468975]
[1673986575153,4.17340613,21382.0,21381.0,0.00468975]
[1673986576221,3.82448164,21382.0,21381.0,0.00468975]
[1673986576738,4.17358219,21382.0,21381.0,0.00468975]
[1673986576995,3.82448164,21382.0,21381.0,0.00468975]
[1673986577296,4.1735676,21382.0,21381.0,0.00468975]
[1673986577845,3.36345838,21382.0,21381.0,0.00468975]
[1673986578123,3.1435951,21382.0,21381.0,0.00468975]
[1673986578378,3.36346744,21382.0,21381.0,0.00468975]
[1673986578914,3.71275756,21382.0,21381.0,0.00468975]
[1673986579171,4.17378082,21382.0,21381.0,0.00468975]
[1673986579429,3.8244907,21382.0,21381.0,0.00468975]
[1673986580001,4.24342115,21382.0,21381.0,0.00468975]
[1673986581060,3.36346744,21382.0,21381.0,0.00468975]
[1673986581334,2.86957616,21382.0,21381.0,0.00468975]
[1673986581846,2.52012403,21382.0,21381.0,0.00468975]
[1673986582788,2.82012403,21382.0,21381.0,0.00468975]
[1673986583304,2.33442234,21382.0,21381.0,0.00468975]
[1673986583562,2.46425711,21382.0,21381.0,0.00468975]
[1673986583826,2.48784928,21382.0,21381.0,0.00468975]
[1673986584083,2.11455,21382.0,21381.0,0.00461514]
[1673986584595,2.46446742,21382.0,21381.0,0.00461514]
[1673986584822,2.75290029,21382.0,21381.0,0.00461514]
[1673986585080,2.45290029,21382.0,21381.0,0.00461514]
[1673986585587,2.17296742,21382.0,21381.0,0.00461514]
[1673986587653,2.45414838,21382.0,21381.0,0.00461514]
[1673986587912,2.12305,21382.0,21381.0,0.00461514]
[1673986588673,2.22305,21382.0,21381.0,0.00461514]
[1673986589193,2.64198045,21382.0,21381.0,0.00461514]
[1673986590795,0.09538486,21381.0,21380.0,0.00394766]
[1673986591064,1.43847486,21381.0,21380.0,0.00394766]
[1673986592132,1.94040531,21381.0,21380.0,0.00494766]
[1673986593178,1.52147486,21381.0,21380.0,0.00494766]
[1673986595491,1.94040531,21381.0,21380.0,0.00494766]
[1673986595762,2.21320603,21381.0,21380.0,0.00494766]
[1673986596532,2.21475098,21381.0,21380.0,0.00494766]
[1673986596797,1.79433558,21381.0,21380.0,0.00494766]
[1673986597330,1.94195647,21381.0,21380.0,0.00494766]
[1673986597858,1.94195647,21381.0,21375.0,0.22870382]
[1673986597859,0.00754958,21376.0,21375.0,0.07870382]
[1673986598182,0.19338958,21376.0,21375.0,0.15320382]
[1673986598347,0.19338958,21376.0,21375.0,0.62103982]
[1673986598842,0.33353695,21376.0,21375.0,0.62103982]
[1673986599370,0.40898737,21376.0,21375.0,0.61449024]
[1673986600397,0.26884,21376.0,21375.0,0.61449024]
[1673986600923,0.26884,21376.0,21375.0,0.14665424]
[1673986600924,0.40898737,21376.0,21375.0,0.14665424]
[1673986601174,0.75935581,21376.0,21375.0,0.53999024]
[1673986601442,0.61920413,21376.0,21375.0,0.0739]
[1673986602452,0.40898307,21376.0,21375.0,0.0739]
[1673986602985,0.40904307,21376.0,21375.0,0.0739]
[1673986604276,0.40904307,21376.0,21374.0,0.467844]
[1673986604554,0.61926413,21376.0,21375.0,0.0745]
[1673986605942,0.53626413,21376.0,21375.0,0.0745]
[1673986606103,0.62026413,21376.0,21375.0,0.0745]
[1673986606354,0.5875586,21376.0,21375.0,0.0745]
[1673986606608,0.6715586,21376.0,21375.0,0.0755]
[1673986606868,1.2931838,21376.0,21375.0,0.0755]
[1673986607128,1.39830422,21376.0,21375.0,0.0755]
[1673986607349,1.6084689,21376.0,21375.0,0.0755]
[1673986607847,1.1406549,21376.0,21375.0,0.0755]
[1673986608112,1.2879079,21376.0,21375.0,0.0755]
[1673986608365,1.4505646,21376.0,21375.0,0.0755]
[1673986608628,1.7710656,21376.0,21375.0,0.0755]
[1673986609161,2.2388796,21376.0,21375.0,0.0755]
[1673986609394,1.79592815,21376.0,21375.0,0.0755]
[1673986609680,1.47542715,21376.0,21375.0,0.0755]
[1673986609922,1.2879079,21376.0,21375.0,0.0755]
[1673986610174,1.32811415,21376.0,21375.0,0.0755]
[1673986610679,1.6084089,21376.0,21375.0,0.0755]
[1673986611414,1.3870899,21376.0,21375.0,0.0755]
[1673986612233,1.2879079,21376.0,21375.0,0.0755]
[1673986612999,1.6084089,21376.0,21375.0,0.0755]
[1673986613224,0.8200939,21376.0,21375.0,0.0755]
[1673986613738,0.95479672,21376.0,21375.0,0.0755]
[1673986613749,0.28392337,21376.0,21375.0,0.203937]
[1673986613990,0.13529447,21376.0,21375.0,0.617436]
[1673986614253,0.13529447,21376.0,21375.0,0.937937]
[1673986614254,0.13029447,21376.0,21375.0,0.937937]
[1673986614763,0.13029447,21376.0,21375.0,0.617436]
[1673986617824,0.27042337,21376.0,21375.0,0.617436]
[1673986618077,0.13029447,21376.0,21375.0,0.617436]
[1673986619360,0.13029447,21376.0,21375.0,0.937937]
[1673986619614,0.13029447,21376.0,21375.0,1.085272]
[1673986620127,0.13029447,21376.0,21375.0,1.405773]
[1673986620393,0.13029447,21376.0,21375.0,1.085272]
[1673986620682,0.13029447,21376.0,21375.0,1.405773]
[1673986620908,0.13029447,21376.0,21375.0,1.474673]
[1673986622677,0.23029447,21376.0,21375.0,1.474673]
[1673986624714,0.23029447,21376.0,21375.0,1.006837]
[1673986625060,0.67522833,21376.0,21375.0,0.001]
[1673986625239,0.72929572,21376.0,21375.0,0.001]
[1673986625500,1.77521822,21376.0,21375.0,0.001]
[1673986625761,2.1452919,21376.0,21375.0,0.001]
[1673986626020,1.79492347,21376.0,21375.0,0.001]
[1673986626552,2.01646398,21376.0,21375.0,0.001]
[1673986626859,2.36682576,21376.0,21375.0,0.00027909]
[1673986627114,2.01646398,21376.0,21375.0,0.00027909]
[1673986628686,1.79492347,21376.0,21375.0,0.00027909]
[1673986629649,0.09972091,21375.0,21374.0,0.1092]
[1673986629915,0.83803649,21375.0,21374.0,0.1092]
[1673986630175,0.24835793,21375.0,21374.0,0.1092]
[1673986630424,0.24835793,21375.0,21374.0,0.2187]
[1673986631415,0.23263702,21375.0,21374.0,0.11997909]
[1673986632764,0.44284255,21375.0,21374.0,0.11997909]
[1673986634077,0.43784255,21375.0,21374.0,0.11997909]
[1673986634319,0.90217855,21375.0,21374.0,0.11997909]
[1673986634829,0.43434255,21375.0,21374.0,0.12907909]
[1673986635403,0.43440255,21375.0,21374.0,0.12907909]
[1673986636205,0.23269702,21375.0,21374.0,0.12907909]
[1673986636978,0.44290255,21375.0,21374.0,0.12907909]
[1673986637228,0.23269702,21375.0,21374.0,0.12907909]
[1673986639837,0.08406,21375.0,21374.0,0.12907909]
[1673986640344,0.084,21375.0,21374.0,0.12907909]
[1673986641118,0.22413702,21375.0,21374.0,0.12907909]
[1673986641381,0.43434255,21375.0,21374.0,0.12907909]
[1673986641898,0.22413702,21375.0,21374.0,0.12907909]
[1673986645272,0.084,21375.0,21374.0,0.12907909]
[1673986646038,0.22413702,21375.0,21374.0,0.12907909]
[1673986646300,0.084,21375.0,21374.0,0.12907909]
[1673986646568,0.22413702,21375.0,21374.0,0.12907909]
[1673986646821,0.22413702,21375.0,21374.0,1.06479509]
[1673986647874,0.22413702,21375.0,21374.0,0.59693709]
[1673986648114,0.084,21375.0,21374.0,0.59693709]
[1673986648383,0.084,21375.0,21374.0,1.06479509]
[1673986648885,0.084,21375.0,21374.0,0.59693709]
[1673986649162,0.084,21375.0,21374.0,0.12907909]
[1673986649943,0.084,21375.0,21374.0,0.59693709]
[1673986650735,0.084,21375.0,21374.0,0.91743809]
[1673986651294,0.084,21375.0,21374.0,0.87872833]
[1673986651546,0.084,21375.0,21374.0,0.91743809]
[1673986652661,0.084,21375.0,21374.0,0.59693709]
[1673986653677,0.22413702,21375.0,21374.0,0.59693709]
[1673986653942,0.084,21375.0,21374.0,0.59693709]
[1673986654197,0.22413702,21375.0,21374.0,0.59693709]
[1673986655835,0.22413702,21375.0,21374.0,0.81188213]
[1673986656367,0.22413702,21375.0,21374.0,0.34402413]
[1673986656622,0.22413702,21375.0,21374.0,0.12907909]
[1673986657153,0.22413702,21375.0,21374.0,0.12896295]
[1673986657154,0.57448712,21375.0,21374.0,0.12896295]
[1673986657409,0.36428159,21375.0,21374.0,0.12896295]
[1673986657670,0.57446817,21375.0,21374.0,0.12896295]
[1673986659719,0.36428159,21375.0,21374.0,0.12896295]
[1673986660186,0.5744533,21375.0,21374.0,0.12896295]
[1673986660442,0.71463358,21375.0,21374.0,0.12896295]
[1673986660697,1.99902499,21375.0,21374.0,0.12896295]
[1673986661223,1.37852399,21375.0,21374.0,0.1101]
[1673986661479,1.1520008,21375.0,21374.0,0.1101]
[1673986661727,2.2403378,21375.0,21374.0,0.001]
[1673986662548,1.69902499,21375.0,21374.0,0.001]
[1673986662790,1.37852399,21375.0,21374.0,0.001]
[1673986663365,1.65866513,21375.0,21374.0,0.001]
[1673986663943,1.19082913,21375.0,21374.0,0.001]
[1673986664248,1.19076643,21375.0,21374.0,0.001]
[1673986664758,1.51126743,21375.0,21374.0,0.001]
[1673986665026,0.72293043,21375.0,21374.0,0.001]
[1673986665320,0.37257844,21375.0,21374.0,0.001]
[1673986665574,0.77038439,21375.0,21374.0,0.001]
[1673986665825,0.30254839,21375.0,21374.0,0.001]
[1673986666081,0.58268953,21375.0,21374.0,0.001]
[1673986666355,0.30254839,21375.0,21374.0,0.001]
[1673986666643,0.58268953,21375.0,21374.0,0.001]
[1673986666894,1.51836153,21375.0,21374.0,0.001]
[1673986667155,0.84041444,21375.0,21374.0,0.001]
[1673986667409,1.43246517,21375.0,21374.0,0.001]
[1673986667680,1.69896229,21375.0,21374.0,0.001]
[1673986668235,1.99896229,21375.0,21374.0,0.001]
[1673986668737,0.76329029,21375.0,21372.0,0.30782185]
[1673986669016,0.35857101,21374.0,21372.0,0.41652185]
[1673986670051,0.1400284,21373.0,21372.0,0.41652185]
[1673986670357,0.35857101,21374.0,21372.0,0.41652185]
[1673986670849,0.1400284,21373.0,21372.0,0.1137]
[1673986671100,0.1485284,21373.0,21372.0,0.005]
[1673986671363,0.1485284,21373.0,21371.0,0.58198385]
[1673986671623,0.1485284,21373.0,21372.0,0.005]
[1673986671881,0.1485284,21373.0,21371.0,0.58198385]
[1673986672124,0.1575284,21373.0,21372.0,0.005]
[1673986672384,0.36757101,21373.0,21372.0,0.005]
[1673986672655,0.1485284,21373.0,21371.0,0.58198385]
[1673986672921,0.1575284,21373.0,21371.0,0.58698385]
[1673986673180,0.1485284,21373.0,21371.0,0.58199885]
[1673986673441,0.1485884,21373.0,21371.0,0.58199885]
[1673986674985,0.1525884,21373.0,21372.0,0.005]
[1673986675261,0.1485884,21373.0,21371.0,0.58199885]
[1673986675548,0.1575884,21373.0,21371.0,0.58699885]
[1673986675897,0.01756,21373.0,21371.0,0.58699885]
[1673986676146,0.3384284,21373.0,21372.0,0.005]
[1673986676393,0.3344284,21373.0,21371.0,0.55284775]
[1673986676647,0.3434284,21373.0,21371.0,0.55784775]
[1673986676900,0.1575884,21373.0,21371.0,0.55784775]
[1673986677185,0.01756,21373.0,21371.0,0.55784775]
[1673986677723,0.01756,21373.0,21371.0,1.36108108]
[1673986677993,0.01756,21373.0,21372.0,0.538101]
[1673986678268,0.01756,21373.0,21372.0,1.006002]
[1673986679328,0.00856,21373.0,21372.0,1.006002]
[1673986679876,0.01256,21373.0,21372.0,1.011002]
[1673986680411,0.1125,21373.0,21372.0,1.011002]
[1673986680669,0.1125,21373.0,21372.0,1.478903]
[1673986682985,0.1125,21373.0,21372.0,1.011002]
[1673986683999,0.1125,21373.0,21372.0,0.690501]
[1673986684253,0.1125,21373.0,21372.0,0.62025556]
[1673986684759,0.1125,21373.0,21372.0,0.94075656]
[1673986685017,0.1125,21373.0,21372.0,0.15235456]
[1673986686126,0.2525284,21373.0,21372.0,1.08815656]
[1673986686319,0.1125,21373.0,21372.0,1.08815656]
[1673986686582,0.2525284,21373.0,21372.0,0.62025556]
[1673986686842,0.2525284,21373.0,21372.0,0.15235456]
[1673986687098,0.46257101,21373.0,21372.0,0.15235456]
[1673986688407,0.32254261,21373.0,21372.0,0.15235456]
[1673986688673,0.25257004,21373.0,21372.0,0.15235456]
[1673986688927,0.46261265,21373.0,21372.0,0.15235456]
[1673986689179,0.25257004,21373.0,21372.0,0.15235456]
[1673986689455,0.46261265,21373.0,21372.0,0.15235456]
[1673986689705,0.25257004,21373.0,21372.0,0.15235456]
[1673986690443,0.32254261,21373.0,21372.0,0.005]
[1673986690713,0.60259942,21373.0,21372.0,0.005]
[1673986690966,0.32254261,21373.0,21372.0,0.005]
[1673986691484,0.60259942,21373.0,21372.0,0.005]
[1673986692003,0.46267487,21373.0,21372.0,0.005]
[1673986692276,0.60259942,21373.0,21372.0,0.005]
[1673986692795,0.46267685,21373.0,21372.0,0.005]
[1673986693042,0.60259942,21373.0,21372.0,0.005]
[1673986693578,0.60278748,21373.0,21372.0,0.005]
[1673986694156,0.32273067,21373.0,21372.0,0.005]
[1673986694411,0.60278748,21373.0,21372.0,0.005]
[1673986695435,0.39255681,21373.0,21372.0,0.005]
[1673986696986,0.6028265,21373.0,21372.0,0.005]
[1673986697240,0.39255681,21373.0,21372.0,0.005]
[1673986697488,0.60281142,21373.0,21372.0,0.005]
[1673986698793,0.79170586,21373.0,21372.0,0.005]
[1673986699148,0.58145125,21373.0,21372.0,0.005]
[1673986699456,1.39861199,21373.0,21372.0,0.005]
[1673986699728,1.668761,21373.0,21372.0,0.005]
[1673986700493,2.64379415,21373.0,21372.0,0.005]
[1673986700746,2.79379415,21373.0,21372.0,0.005]
[1673986701006,3.76965679,21373.0,21372.0,0.005]
[1673986701278,3.86895748,21373.0,21372.0,0.005]
[1673986701540,3.39766072,21373.0,21372.0,0.005]
[1673986701800,3.24766072,21373.0,21372.0,0.005]
[1673986702573,3.39766072,21373.0,21372.0,0.005]
[1673986702837,3.86895748,21373.0,21372.0,0.005]
[1673986703093,3.24366072,21373.0,21370.0,0.00539464]
[1673986703348,0.1095,21371.0,21370.0,0.00539464]
[1673986703810,3.32685811,21371.0,21370.0,0.00539464]
[1673986704064,3.33535811,21371.0,21370.0,0.00539464]
[1673986704323,3.21548323,21371.0,21370.0,0.00539464]
[1673986704588,3.63535811,21371.0,21370.0,0.00539464]
[1673986704852,3.96233946,21371.0,21370.0,0.00539464]
[1673986705133,4.07183946,21371.0,21370.0,0.00539464]
[1673986705430,3.92183946,21371.0,21370.0,0.00539464]
[1673986705693,3.61161863,21371.0,21370.0,0.00539464]
[1673986705949,3.17498323,21371.0,21370.0,0.00539464]
[1673986706203,3.61163854,21371.0,21370.0,0.00539464]
[1673986706460,3.52463854,21371.0,21370.0,0.00539464]
[1673986706940,3.8360854,21371.0,21370.0,0.00539464]
[1673986706942,3.7360854,21371.0,21370.0,0.00539464]
[1673986709047,3.95605963,21371.0,21370.0,0.00527516]
[1673986709539,4.37593451,21371.0,21370.0,0.00527516]
[1673986709544,4.42302356,21371.0,21370.0,0.00527516]
[1673986709798,4.68311603,21371.0,21370.0,0.00527516]
[1673986710051,4.68307977,21371.0,21370.0,0.00527516]
[1673986710299,4.26377801,21371.0,21370.0,0.00527516]
[1673986710554,4.38601598,21371.0,21370.0,0.00527516]
[1673986710818,4.3378576,21371.0,21370.0,0.00527516]
[1673986711071,4.75693715,21371.0,21370.0,0.00527516]
[1673986711336,4.99091715,21371.0,21370.0,0.00527516]
[1673986712677,5.2304376,21371.0,21370.0,0.00527516]
[1673986712941,5.27746665,21371.0,21370.0,0.00527516]
[1673986713255,5.69626353,21371.0,21370.0,0.00527516]
[1673986713499,5.27746665,21371.0,21370.0,0.00527516]
[1673986714006,0.15,21370.0,21369.0,0.00539464]
[1673986714257,3.75848679,21370.0,21369.0,0.00539464]
[1673986714569,4.3266874,21370.0,21369.0,0.00539464]
[1673986714818,4.79251584,21370.0,21369.0,0.00539464]
[1673986715367,4.37371645,21370.0,21369.0,0.00539464]
[1673986715613,4.79251584,21370.0,21369.0,0.00539464]
[1673986715901,4.87951584,21370.0,21369.0,0.00539464]
[1673986716157,4.79061645,21370.0,21369.0,0.00539464]
[1673986716409,0.15,21369.0,21368.0,0.00028689]
[1673986716666,4.27208154,21369.0,21368.0,0.00028689]
[1673986716919,3.90231919,21369.0,21368.0,0.00028689]
[1673986717384,4.32091059,21369.0,21368.0,0.00028689]
[1673986717636,3.24431919,21369.0,21368.0,0.00028689]
[1673986717893,3.00567728,21369.0,21368.0,0.00028689]
[1673986718158,3.14135766,21369.0,21368.0,0.00028689]
[1673986718668,3.42880241,21369.0,21368.0,0.00028689]
[1673986718923,3.28930045,21369.0,21368.0,0.00028689]
[1673986719196,3.76339857,21369.0,21368.0,0.00028689]
[1673986719455,3.43928153,21369.0,21368.0,0.00028689]
[1673986719719,2.66433004,21369.0,21368.0,0.00028689]
[1673986720247,2.80383941,21369.0,21368.0,0.00028689]
[1673986721008,3.24978139,21369.0,21368.0,0.00028689]
[1673986721343,3.84464629,21369.0,21368.0,0.00028689]
[1673986721857,3.79761724,21369.0,21368.0,0.00028689]
[1673986722114,3.50275234,21369.0,21368.0,0.00028689]
[1673986722620,2.91719222,21369.0,21368.0,0.00028689]
[1673986722884,1.56350442,21369.0,21368.0,0.00028689]
[1673986723146,1.24300342,21369.0,21368.0,0.00028689]
[1673986723404,0.08706,21369.0,21368.0,0.00028689]
[1673986723934,0.08706,21369.0,21368.0,0.32078789]
[1673986724448,6e-05,21369.0,21368.0,0.32078789]
[1673986724702,0.08,21369.0,21368.0,0.32178789]
[1673986725214,6e-05,21370.0,21368.0,0.32078789]
[1673986725465,0.079,21369.0,21368.0,0.00128689]
[1673986725998,0.079,21369.0,21368.0,0.32178789]
[1673986726269,0.079,21369.0,21368.0,0.43784155]
[1673986726528,6e-05,21370.0,21368.0,0.43684155]
[1673986726784,0.08856,21370.0,21369.0,0.1087]
[1673986727039,0.17721,21370.0,21369.0,0.1087]
[1673986727296,0.17721,21370.0,21368.0,0.10898689]
[1673986727297,0.945155,21370.0,21368.0,0.10898689]
[1673986727840,0.079,21369.0,21368.0,0.10998689]
[1673986728114,0.0875,21369.0,21368.0,0.21948689]
[1673986728378,0.00856,21370.0,21369.0,0.16932]
[1673986728379,0.08006,21370.0,21369.0,0.16932]
[1673986728633,0.08006,21370.0,21369.0,1.71803396]